Cogmind - Beta 13 *** ADVENTURER MODE // 2024.05.11 @ 21:19:53 // Winter2019/RPGLIKE Player: Gallgagger Result: Escaped! Performance ------------- Evolutions (9) 4500 Regions Visited (33) 6600 Robots Destroyed (661) 3305 Value Destroyed (35325) 35325 Prototype IDs (24) 480 Alien Tech Used (1) 200 Bonus (34861) 34861 TOTAL SCORE: 85271 Bonus ------- High Alert Combat Kills 6169 Follower Combat Kills 1392 Entered Garrisons 200 Met Data Miner 300 Destroyed Z-Imprinter 1000 Triggered Deep Caves Wall 500 Exposed GOLEM Chamber 500 Acquired ECA 300 Met Zhirov 300 Met Warlord at Base 500 MAIN.C Attacked Warlord 500 Warlord Defense Kills 1176 Acquired SGEMP 2000 Delivered SGEMP 2000 Destroyed MAIN.C Guards 500 Met MAIN.C 5000 Destroyed MAIN.C Shell 5000 Zhirov Destroyed MAIN.C 3000 Met Warlord at Command 2000 Win 3000 Friendly Fire -476 Cogmind --------- Core Integrity 545/2000 Matter 562/600 Energy 2381/2390 System Corruption 19% Temperature Cool (6) Movement Walking (190) Ox1 Location To Epsilon Eridani Parts ------- > --- POWER (5) -------- Micro Nuclear Core (fused) Light Antimatter Reactor Light Antimatter Reactor Assembled Flux Generator > --- PROPULSION (3) --- Centrium Leg Centrium Leg Centrium Leg > --- UTILITY (12) ----- Assembled Nanovents Assembled Nanovents Assembled Nanovents Assembled Biocell Array Assembled Biocell Array Assembled Suspension Frame Assembled Combat Suite Assembled Alloy Armor Assembled Alloy Armor AEGIS Remote Shield GOLEM Unit > --- WEAPON (4) ------- Assembled Focal Cannon Assembled Focal Cannon Assembled Focal Cannon > --- INVENTORY (5) ---- Centrium Leg Encrypted Comm Array Advanced Targeting Computer Thermal Barrier Deploy-a-Sentry Peak State ------------ > --- POWER ------------ Micro Nuclear Core Light Antimatter Reactor Light Antimatter Reactor Assembled Flux Generator > --- PROPULSION ------- Centrium Leg Centrium Leg Centrium Leg > --- UTILITY ---------- Assembled Nanovents Assembled Nanovents Assembled Nanovents Assembled Biocell Array Assembled Biocell Array Assembled Suspension Frame Assembled Combat Suite Assembled Alloy Armor Assembled Alloy Armor AEGIS Remote Shield GOLEM Unit > --- WEAPON ----------- Assembled Focal Cannon Assembled Focal Cannon Assembled Focal Cannon > --- INVENTORY -------- Centrium Leg Encrypted Comm Array Advanced Targeting Computer Thermal Barrier Deploy-a-Sentry [Rating: 198] Favorites ----------- Power Light Nuclear Core Engine Improved Deuterium Engine Power Core Light Nuclear Core Reactor Assembled Flux Generator Propulsion Assembled Alloy Leg Treads Medium Treads Leg Assembled Alloy Leg Utility Assembled Nanovents Device Assembled Nanovents Storage Assembled Biocell Array Processor Improved Signal Interpreter Protection Assembled Alloy Armor Weapon Assembled Focal Cannon Energy Gun Small Laser Energy Cannon Assembled Focal Cannon Ballistic Gun Flak Gun Launcher Heavy Missile Launcher Special Weapon RU-N14's Throwing Claymores v3 Impact Weapon Great Maul Build | -11 -10 -10 -10 -9 -8 -7 -7 -7 -7 -6 -6 -6 -6 -6 -6 -5 -5 -5 -5 -5 -5 -5 -4 -4 -4 -4 -4 -3 -3 -3 -2 -1 -1 ------- Run | Yrd Mat Min Exi Min Mat Fac Low Low Dat Pro Fac Low Low Zio Dee Pro Fac Gar Fac Upp Upp Zhi Pro Fac Upp Upp War Pro Res Tes Res Acc Com Slots Evolved 20 | 5 . 2 . . . 3 . . 2 . 1 1 . . . . 1 . 1 . . . . . . . . . 1 1 . 1 1 Power 4 | 1 . . . . . 1 . . 1 . . 1 . . . . . . . . . . . . . . . . . . . . . Propulsion 2 | 1 . . . . . . . . 1 . . . . . . . . . . . . . . . . . . . . . . . . Utility 11 | 2 . . . . . 2 . . . . 1 . . . . . 1 . 1 . . . . . . . . . 1 1 . 1 1 Weapon 3 | 1 . 2 . . . . . . . . . . . . . . . . . . . . . . . . . . . . . . . Parts Attached 129 | 7 6 5 . . 3 35 2 . . 5 6 12 4 6 15 . 1 2 . . . . . . . 1 1 1 1 1 3 . 12 Power 22 | 2 . . . . 2 5 1 . . 2 . 2 . . 2 . 1 2 . . . . . . . . . . . . . . 3 Engine 3 | 2 . . . . . . 1 . . . . . . . . . . . . . . . . . . . . . . . . . . Core 16 | . . . . . 2 5 . . . 2 . 1 . . 2 . 1 2 . . . . . . . . . . . . . . 1 Reactor 3 | . . . . . . . . . . . . 1 . . . . . . . . . . . . . . . . . . . . 2 Propulsion 22 | 2 . . . . . 4 . . . 1 . 5 . . . . . . . . . . . . . . . 1 1 . 3 . 5 Treads 12 | 2 . . . . . 4 . . . 1 . 5 . . . . . . . . . . . . . . . . . . . . . Leg 10 | . . . . . . . . . . . . . . . . . . . . . . . . . . . . 1 1 . 3 . 5 Wheel . | . . . . . . . . . . . . . . . . . . . . . . . . . . . . . . . . . . Hover . | . . . . . . . . . . . . . . . . . . . . . . . . . . . . . . . . . . Flight . | . . . . . . . . . . . . . . . . . . . . . . . . . . . . . . . . . . Utility 43 | . 4 1 . . . 12 1 . . 1 6 5 4 . 5 . . . . . . . . . . . . . . . . . 4 Device 20 | . 1 . . . . 2 1 . . . 3 4 1 . 4 . . . . . . . . . . . . . . . . . 4 Storage 2 | . . . . . . . . . . . 2 . . . . . . . . . . . . . . . . . . . . . . Processor 6 | . 1 . . . . 1 . . . . 1 1 1 . 1 . . . . . . . . . . . . . . . . . . Hackware . | . . . . . . . . . . . . . . . . . . . . . . . . . . . . . . . . . . Protection 15 | . 2 1 . . . 9 . . . 1 . . 2 . . . . . . . . . . . . . . . . . . . . Artifact . | . . . . . . . . . . . . . . . . . . . . . . . . . . . . . . . . . . Weapon 42 | 3 2 4 . . 1 14 . . . 1 . . . 6 8 . . . . . . . . . . 1 1 . . 1 . . . Energy Gun 1 | 1 . . . . . . . . . . . . . . . . . . . . . . . . . . . . . . . . . Energy Cannon 15 | . . . . . . 6 . . . 1 . . . 3 5 . . . . . . . . . . . . . . . . . . Ballistic Gun 14 | 2 2 3 . . 1 6 . . . . . . . . . . . . . . . . . . . . . . . . . . . Ballistic Cannon . | . . . . . . . . . . . . . . . . . . . . . . . . . . . . . . . . . . Launcher 7 | . . . . . . 2 . . . . . . . 3 2 . . . . . . . . . . . . . . . . . . Special Weapon 4 | . . 1 . . . . . . . . . . . . . . . . . . . . . . . 1 1 . . 1 . . . Impact Weapon 1 | . . . . . . . . . . . . . . . 1 . . . . . . . . . . . . . . . . . . Slashing Weapon . | . . . . . . . . . . . . . . . . . . . . . . . . . . . . . . . . . . Piercing Weapon . | . . . . . . . . . . . . . . . . . . . . . . . . . . . . . . . . . . Special Melee Weapon . | . . . . . . . . . . . . . . . . . . . . . . . . . . . . . . . . . . Unidentified Prototypes 6 | . . . . . . . . . . . . . . . 1 1 . . . . . . . . . . 1 . . . . . 3 Corrupted Parts 1 | . . . . . . . . . . . . 1 . . . . . . . . . . . . . . . . . . . . . System Corruption 3 | . . . . . . . . . . . . 3 . . . . . . . . . . . . . . . . . . . . . Parts Lost 6 | . . . . . . . . . . . . . . . . . . 1 . . . . . . . . . . . . . 1 4 Power . | . . . . . . . . . . . . . . . . . . . . . . . . . . . . . . . . . . Propulsion . | . . . . . . . . . . . . . . . . . . . . . . . . . . . . . . . . . . Utility 6 | . . . . . . . . . . . . . . . . . . 1 . . . . . . . . . . . . . 1 4 Weapon . | . . . . . . . . . . . . . . . . . . . . . . . . . . . . . . . . . . Highest Loss Streak 2 | . . . . . . . . . . . . . . . . . . 1 . . . . . . . . . . . . . 1 2 To Critical Strikes . | . . . . . . . . . . . . . . . . . . . . . . . . . . . . . . . . . . Average Slot Usage (%) 89 | . 97 99 100 100 100 99 99 100 94 96 95 97 99 99 88 77 76 72 79 80 80 73 80 80 80 80 84 87 90 89 82 81 83 Engine 2 | . 22 18 18 18 13 . 4 7 6 6 5 5 5 5 3 . . . . . . . . . . . . . . . . . . Core 13 | . . . . . 4 15 16 14 13 17 17 19 16 16 14 16 15 9 15 15 15 15 15 15 15 15 15 15 14 13 9 8 6 Reactor 3 | . . . . . . . . . . . . 1 5 5 5 5 5 5 5 5 5 5 5 5 5 5 5 5 4 4 4 4 6 Treads 7 | . 22 18 18 18 18 15 14 14 13 15 17 16 16 16 9 . . . . . . . . . . . . . . . . . . Leg 5 | . . . . . . . . . . . . . . . 4 11 10 10 10 10 10 10 10 10 10 10 10 12 14 13 13 13 12 Device 19 | . 8 9 9 9 9 13 13 14 13 12 16 16 16 16 15 16 17 20 23 25 25 25 25 25 25 25 25 25 27 27 27 26 27 Storage 3 | . . . . . . . . . . . . 5 5 5 4 5 5 5 5 5 5 5 5 5 5 5 5 5 4 4 4 7 8 Processor 2 | . 10 9 9 9 9 7 7 7 6 6 . . 2 5 4 . . . . . . . . . . . . . . . . . . Protection 8 | . 11 9 9 9 9 14 14 14 13 12 11 8 7 5 3 5 5 5 5 5 5 5 5 5 5 5 5 5 4 5 9 8 8 Energy Cannon 15 | . . . . . . 3 28 28 26 25 23 22 22 21 16 16 15 15 15 15 15 8 15 15 15 15 15 15 14 13 13 13 12 Ballistic Gun 5 | . 22 33 36 36 36 26 . . . . . . . . . . . . . . . . . . . . . . . . . . . Naked Turns . | . . . . . . . . . . . . . . . . . . . . . . . . . . . . . . . . . . Heaviest Build 148 | 12 20 31 31 31 31 63 68 68 68 79 85 90 89 82 114 110 111 111 111 111 111 111 111 111 111 111 121 121 123 128 128 114 148 Greatest Support 115 | 40 40 40 40 40 40 56 55 55 55 83 83 83 83 83 83 65 65 65 85 85 85 85 85 85 85 85 85 105 113 113 115 115 115 Greatest Overweight (x) 2 | . . . . . . 1 1 1 1 1 1 2 1 . 2 1 1 1 1 1 1 1 1 1 1 1 1 1 1 1 1 . 1 Average Overweight (x) . | . . . . . . . 1 1 1 . . 1 . . . 1 1 1 1 1 1 . 1 1 1 1 1 1 1 . . . . Largest Inventory Capacity 5 | 2 2 2 2 3 5 5 5 5 5 5 5 5 5 5 5 5 5 5 5 5 5 5 5 5 5 5 5 5 5 5 5 5 5 Average Capacity 4 | 2 2 2 2 2 4 5 5 5 5 5 5 5 5 5 5 5 5 5 5 5 5 5 5 5 5 5 5 5 5 5 5 5 5 Most Carried 5 | . 2 2 2 2 3 5 5 5 5 5 5 5 5 5 5 2 3 3 1 3 3 3 3 3 4 5 5 5 5 5 5 3 5 Average Carried 3 | . 1 1 2 2 2 4 4 5 5 4 5 5 4 5 2 1 1 2 1 2 3 3 3 3 3 4 5 5 5 4 5 3 3 Final Capacity 5 | 2 2 2 2 3 5 5 5 5 5 5 5 5 5 5 5 5 5 5 5 5 5 5 5 5 5 5 5 5 5 5 5 5 5 Final Carried 5 | . 2 2 2 2 3 4 5 5 5 5 5 5 5 5 1 1 3 1 1 3 3 3 3 3 4 5 5 5 5 5 5 3 5 Class Distribution -------------------- 51% | Hacker-Golem 41% | Hacker-Tank 3% | Skirmisher Dominant Class ---------------- Mutant | -10/Materials Skirmisher | -10/Mines Skirmisher | -10/Exiles Skirmisher | -9/Mines Hacker-Skirmisher | -8/Materials Hacker-Tank | -7/Factory Hacker-Tank | -7/Lower Caves Hacker-Tank | -7/Lower Caves Hacker-Tank | -7/Data Miner Hacker-Tank | -6/Proximity Caves Hacker-Tank | -6/Factory Hacker-Tank | -6/Lower Caves Hacker-Tank | -6/Lower Caves Hacker-Tank | -6/Zion Hacker-Tank | -6/Deep Caves Hacker-Golem | -5/Proximity Caves Hacker-Golem | -5/Factory Hacker-Golem | -5/Garrison Hacker-Golem | -5/Factory Hacker-Golem | -5/Upper Caves Hacker-Golem | -5/Upper Caves Hacker-Golem | -5/Zhirov Hacker-Golem | -4/Proximity Caves Hacker-Golem | -4/Factory Hacker-Golem | -4/Upper Caves Hacker-Golem | -4/Upper Caves Hacker-Golem | -4/Warlord Hacker-Golem | -3/Proximity Caves Hacker-Golem | -3/Research Hacker-Golem | -3/Testing Hacker-Golem | -2/Research Hacker-Golem | -1/Access Hacker-Golem | -1/Command Resources | -11 -10 -10 -10 -9 -8 -7 -7 -7 -7 -6 -6 -6 -6 -6 -6 -5 -5 -5 -5 -5 -5 -5 -4 -4 -4 -4 -4 -3 -3 -3 -2 -1 -1 ----------- Run | Yrd Mat Min Exi Min Mat Fac Low Low Dat Pro Fac Low Low Zio Dee Pro Fac Gar Fac Upp Upp Zhi Pro Fac Upp Upp War Pro Res Tes Res Acc Com Matter Collected 5939 | 270 104 550 . . 318 2718 227 77 . 233 50 195 97 20 414 10 . 42 6 28 47 . 19 . . . 20 10 31 54 57 . 342 Remotely . | . . . . . . . . . . . . . . . . . . . . . . . . . . . . . . . . . . Salvage Created 35516 | . 362 497 . . 506 3154 353 537 . 1344 2511 1151 1239 . 3143 460 1380 2027 1178 780 137 . 826 1206 890 1007 498 896 1998 1469 749 1573 3645 Parts 1702 | . 30 22 . . 28 165 32 29 . 67 129 53 40 . 21 28 59 87 49 41 11 . 36 53 30 51 32 39 94 119 41 60 256 Haulers Intercepted 7 | . 1 . . . . 2 . . . . 2 . . . . . 2 . . . . . . . . . . . . . . . . Recyclers Shooed 7 | . . 1 . . . 2 . . . . . . . . . . 1 . 1 . . . . . . . . . . . . . 2 Parts Field Recycled . | . . . . . . . . . . . . . . . . . . . . . . . . . . . . . . . . . . Retrieved Matter . | . . . . . . . . . . . . . . . . . . . . . . . . . . . . . . . . . . Parts Self-Destructed 332 | . . . . . . . 6 19 . 39 . 14 14 . . 28 . . . 47 11 . 36 . 30 51 . 37 . . . . . Prevented 150 | . . . . . . . 14 11 . 49 . 43 33 . . . . . . . . . . . . . . . . . . . . Kills | -11 -10 -10 -10 -9 -8 -7 -7 -7 -7 -6 -6 -6 -6 -6 -6 -5 -5 -5 -5 -5 -5 -5 -4 -4 -4 -4 -4 -3 -3 -3 -2 -1 -1 ------- Run | Yrd Mat Min Exi Min Mat Fac Low Low Dat Pro Fac Low Low Zio Dee Pro Fac Gar Fac Upp Upp Zhi Pro Fac Upp Upp War Pro Res Tes Res Acc Com Combat Hostiles Destroyed 648 | . 10 6 . . 10 71 12 14 . 23 37 22 19 . 78 15 21 29 18 19 3 . 15 16 12 16 10 12 31 23 12 21 73 Melee 2 | . . . . . . 2 . . . . . . . . . . . . . . . . . . . . . . . . . . . Guns 88 | . 10 6 . . 10 62 . . . . . . . . . . . . . . . . . . . . . . . . . . . Cannons 456 | . . . . . . 5 10 11 . 14 21 17 10 . 28 15 21 29 18 19 3 . 15 15 12 16 10 12 31 23 12 16 73 AOE 56 | . . . . . . 2 . 2 . . 3 . 2 . 42 . . . . . . . . . . . . . . . . 5 . Classes Destroyed 34 | . 5 3 . . 1 6 2 . . 2 1 . . . 4 1 . . . 1 1 . . 1 . . 1 . . 2 1 . 2 Worker 16 | . 1 3 . . . 1 . . . . 5 . . . . . . . . . . . . 3 . . . . 1 . . . 2 Builder 10 | . . . . . . 2 . . . . 4 . . . . . 1 . 1 . . . . 2 . . . . . . . . . Tunneler 4 | . . 2 . . . 1 . . . . . . . . . . . . 1 . . . . . . . . . . . . . . Hauler 7 | . 1 . . . . 2 . . . . 2 . . . . . 2 . . . . . . . . . . . . . . . . Recycler 15 | . . 2 . . 1 6 . . . . 2 . . . . . . . . . . . . . . . . . . . . 1 3 Carrier 2 | . . . . . . . . . . . . . . . . . . . . 1 . . . . . . . . . . 1 . . Minesweeper 3 | . . . . . . . . . . . . . . . . . . . . . 1 . . . . 2 . . . . . . . Mechanic 2 | . . . . . . 1 . . . . . . 1 . . . . . . . . . . . . . . . . . . . . Operator 11 | . . . . . . 3 . . . . 3 . . . . . . . . . . . . . . . . . 2 . 2 . 1 Drone 2 | . . . . . . . . . . . . . . . . 2 . . . . . . . . . . . . . . . . . Watcher 27 | . 2 . . . 1 3 . . . . 3 . . . . . 3 . 1 . . . . 2 . . . . 2 2 . 2 6 Swarmer 109 | . 6 2 . . . 8 . 4 . 7 2 7 . . . 5 5 3 3 5 . . 5 . 4 . . . 11 . 6 8 18 Saboteur 4 | . . . . . . . . . . . 1 . . . . . . . . . . . . . . . 2 . . . . . 1 Grunt 221 | . 4 2 . . 5 38 6 9 . 5 18 7 13 . . 5 6 17 9 8 1 . 6 4 6 11 7 8 12 3 . 4 7 Brawler 20 | . . . . . . 2 . . . 1 3 1 3 . . 2 1 1 . 1 . . . . . 1 . . . . . . 4 Duelist 15 | . . . . . . 2 2 . . 2 . 1 1 . . . . . 1 2 . . . . . 2 . . 1 . . 1 . Protector 6 | . . . . . . . . . . 1 1 . . . . . . . 1 . . . . . . 1 . . . . . . 2 Sentry 66 | . . 2 . . 4 9 . . . 3 6 2 2 . . 1 3 7 2 2 1 . 1 7 1 1 . 1 2 2 . 1 6 Demolisher 1 | . . . . . . . . . . . . . . . . . . . . . . . . . . . . . . . 1 . . Specialist 1 | . . . . . . . . . . . . . . . . . . . . . . . . . . . 1 . . . . . . Hunter 42 | . . . . . 1 2 . . . 1 3 4 . . . . 2 1 . . . . 2 2 . . . 2 2 5 . 3 12 Programmer 53 | . . . . . . 10 . 1 . 1 3 . . . . . 4 . 2 1 . . . 2 . . . . 3 10 1 3 12 Heavy 1 | . . . . . . . . . . . . . . . . . . . . . . . . 1 . . . . . . . . . Behemoth 9 | . . . . . . . . . . 2 . . . . . . . . . . 1 . 1 . 1 . . 1 . . 1 1 1 Combat Programmer 1 | . . . . . . . . . . . . . . . . . . . . . . . . . . . . . . . . . 1 Striker 6 | . . . . . . . . . . . . . . . . . . . . . . . . . . . . . . 2 2 . 2 Executioner 4 | . . . . . . . . . . . . . . . . . . . . . . . . . . . . . . . . . 4 Alpha 7 3 | . . . . . . . . . . . . . . . . . . . . . . . . . . . . . . 1 . . 2 Z-Light 4 | . . . . . . . . . . . . . . . 4 . . . . . . . . . . . . . . . . . . Thief 3 | . . . . . . . 3 . . . . . . . . . . . . . . . . . . . . . . . . . . Assembler 2 | . . . . . . . . . . . . . . . 2 . . . . . . . . . . . . . . . . . . Assembled 51 | . . . . . . . . . . . . . . . 51 . . . . . . . . . . . . . . . . . . Golem 22 | . . . . . . . . . . . . . . . 22 . . . . . . . . . . . . . . . . . . Thug 1 | . . . . . . . . . . . . . . . . . . . . . . . . . . . . . . . 1 . . Mutant 1 | . . . . . . . 1 . . . . . . . . . . . . . . . . . . . . . . . . . . Troll 1 | . . . . . . . . . . . . . . . . . . . . . . . . . . . . . . . . . 1 Best Kill Streak 50 | . 5 7 . . 5 6 3 7 . 4 9 7 12 . 50 8 5 8 5 7 2 . 5 12 5 8 6 3 10 6 5 9 10 Combat Bots Only 48 | . 5 2 . . 5 6 3 7 . 4 7 7 11 . 48 8 5 8 4 7 1 . 5 6 5 8 6 3 10 6 5 8 7 Max Kills in Single Turn 23 | . 1 2 . . 2 2 2 1 . 2 5 2 2 . 23 1 2 2 2 2 1 . 1 5 1 1 2 1 2 2 2 4 3 Gunslinging 1 | . . 1 . . . 1 . . . . . . . . . . . . . . . . . . . . . . . . . . . Exploded 23 | . . . . . . 1 . 1 . . 1 . 1 . 23 . . . . . . . . . . . . . . . . 3 . Melee 1 | . . . . . . 1 . . . . . . . . . . . . . . . . . . . . . . . . . . . Uniques/NPCs Destroyed 1 | . . . . . . . . . . . . . . . 1 . . . . . . . . . . . . . . . . . . Z-Imprinter (-6/Deep Caves) Combat | -11 -10 -10 -10 -9 -8 -7 -7 -7 -7 -6 -6 -6 -6 -6 -6 -5 -5 -5 -5 -5 -5 -5 -4 -4 -4 -4 -4 -3 -3 -3 -2 -1 -1 -------- Run | Yrd Mat Min Exi Min Mat Fac Low Low Dat Pro Fac Low Low Zio Dee Pro Fac Gar Fac Upp Upp Zhi Pro Fac Upp Upp War Pro Res Tes Res Acc Com Hostile Shots Fired 3290 | . 33 31 . . 26 436 24 48 . 124 159 96 57 . 255 47 121 152 71 65 22 . 53 113 90 71 71 63 91 110 51 88 722 Missed 1159 | . 8 9 . . 8 162 3 13 . 40 49 32 14 . 75 13 40 46 22 17 6 . 20 53 24 19 31 16 40 52 15 35 297 Damage Taken 28772 | . 196 191 . . 223 2926 240 466 . 1123 1166 704 594 . 2846 432 861 1326 574 577 262 . 450 876 1001 680 465 679 782 782 781 789 6780 Core 20816 | . 133 127 . . 163 1901 158 319 . 712 732 461 389 . 2149 333 658 1018 433 420 202 . 330 658 751 510 361 537 593 583 581 574 5030 Absorbed by Shields 425 | . . . . . . . . . . . . . . . . . . . . . . . . . . . . . . . . . 425 Redirected to Core 18160 | . 110 99 . . 138 1660 158 268 . 626 639 422 360 . 1914 268 597 830 396 385 149 . 295 633 672 453 312 365 536 530 524 549 4272 Ignored by Resistances 15334 | . 62 60 . . 65 884 70 134 . 324 632 301 313 . 1399 255 509 780 342 341 153 . 264 508 593 401 281 396 462 461 441 472 4431 Core Remaining (%) 89 | 100 . . . 82 100 . . . . 100 . . . . . 100 . . . . . . 93 . . . . 100 . 100 92 . 27 Volleys Fired 1214 | . 37 19 . . 18 131 22 17 . 41 52 34 21 3 123 24 44 73 39 30 11 . 23 37 32 26 12 24 44 38 32 31 176 Largest 4 | . 2 4 . . 4 4 3 3 . 4 4 4 4 1 4 3 3 3 3 3 3 . 3 3 3 3 3 3 3 3 3 3 3 Hottest 300 | . 46 92 . . 94 225 225 225 . 255 300 300 300 90 300 75 75 75 75 75 75 . 75 75 75 75 75 75 75 75 75 75 75 Shots Fired 3756 | . 74 74 . . 72 484 55 55 . 124 209 137 85 3 297 72 132 218 118 90 36 . 70 111 96 78 36 72 132 110 96 91 529 Gun 661 | . 74 74 . . 72 441 . . . . . . . . . . . . . . . . . . . . . . . . . . . Cannon 3073 | . . . . . . 37 55 55 . 124 209 137 85 3 281 72 132 218 118 90 36 . 70 111 96 78 36 72 132 110 96 91 529 Launcher 22 | . . . . . . 6 . . . . . . . . 16 . . . . . . . . . . . . . . . . . . Special . | . . . . . . . . . . . . . . . . . . . . . . . . . . . . . . . . . . Kinetic 661 | . 74 74 . . 72 441 . . . . . . . . . . . . . . . . . . . . . . . . . . . Thermal 2280 | . . . . . . . 7 1 . 4 . . . 3 178 72 132 218 118 90 36 . 70 111 96 78 36 72 132 110 96 91 529 Explosive 22 | . . . . . . 6 . . . . . . . . 16 . . . . . . . . . . . . . . . . . . Electromagnetic 793 | . . . . . . 37 48 54 . 120 209 137 85 . 103 . . . . . . . . . . . . . . . . . . Robot Hit Streak 112 | . 17 21 . . 25 112 38 26 . 53 28 25 26 . 48 15 28 41 28 18 26 . 56 60 65 20 34 35 43 43 61 23 98 Robot Miss Streak 7 | . 2 6 . . 2 7 1 2 . 2 1 2 2 . 1 2 1 1 1 1 2 . 1 1 1 1 1 1 1 1 1 2 1 Penetration Max 1 | . . . . . . 1 . . . . . . . . . . . . . . . . . . . . . . . . . . . Secondary Targets 17 | . 1 4 . . 3 9 . . . . . . . . . . . . . . . . . . . . . . . . . . . Max Gunslinging Chain 2 | . 1 2 . . 1 2 . . . . . . . . . . . . . . . . . . . . . . . . . . . Shots Hit Robots 2652 | . 58 43 . . 54 363 38 36 . 97 143 65 59 . 235 41 91 132 84 66 26 . 52 95 61 59 19 52 80 76 67 62 398 Core Hits 1503 | . 19 19 . . 23 394 18 18 . 36 71 29 29 . 210 19 36 61 31 25 7 . 24 36 21 26 14 23 47 38 26 33 170 Critical Kills 2 | . . . . . . 2 . . . . . . . . . . . . . . . . . . . . . . . . . . . Critical Parts Destroyed 3 | . . . . . . 3 . . . . . . . . . . . . . . . . . . . . . . . . . . . Critical Strikes 14 | . . . . . . 5 2 . . 2 2 1 . . 2 . . . . . . . . . . . . . . . . . . Destroy 5 | . . . . . . 5 . . . . . . . . . . . . . . . . . . . . . . . . . . . Corrupt 9 | . . . . . . . 2 . . 2 2 1 . . 2 . . . . . . . . . . . . . . . . . . Melee Attacks . | . . . . . . . . . . . . . . . . . . . . . . . . . . . . . . . . . . Impact . | . . . . . . . . . . . . . . . . . . . . . . . . . . . . . . . . . . Slashing . | . . . . . . . . . . . . . . . . . . . . . . . . . . . . . . . . . . Piercing . | . . . . . . . . . . . . . . . . . . . . . . . . . . . . . . . . . . Sneak Attacks . | . . . . . . . . . . . . . . . . . . . . . . . . . . . . . . . . . . Combat Hostiles . | . . . . . . . . . . . . . . . . . . . . . . . . . . . . . . . . . . Follow-up Attacks . | . . . . . . . . . . . . . . . . . . . . . . . . . . . . . . . . . . Damage Inflicted 117229 | . 769 652 . . 810 8587 1331 1319 . 2704 5511 2025 2155 . 12057 1935 4217 6717 3906 3240 1215 . 2689 5293 3184 3242 1044 2797 5087 4387 3736 4388 22232 Guns 9611 | . 769 647 . . 810 7385 . . . . . . . . . . . . . . . . . . . . . . . . . . . Cannons 100073 | . . . . . . 747 1331 1033 . 2484 4385 2025 1817 . 8164 1935 4136 6717 3906 3240 1215 . 2689 4977 3184 3242 1044 2797 5087 4387 3736 3571 22224 Explosions 7364 | . . . . . . 358 . 286 . 220 1092 . 338 . 3893 . 44 . . . . . . 316 . . . . . . . 817 . Melee . | . . . . . . . . . . . . . . . . . . . . . . . . . . . . . . . . . . Ramming 181 | . . 5 . . . 97 . . . . 34 . . . . . 37 . . . . . . . . . . . . . . . 8 Kinetic 9611 | . 769 647 . . 810 7385 . . . . . . . . . . . . . . . . . . . . . . . . . . . Thermal 86540 | . . . . . . 104 158 312 . 248 1013 . 338 . 6236 1935 4180 6717 3906 3240 1215 . 2689 4977 3184 3242 1044 2797 5087 4387 3736 3571 22224 Explosive 5082 | . . . . . . 254 . . . . 79 . . . 3616 . . . . . . . . 316 . . . . . . . 817 . Electromagnetic 15815 | . . . . . . 747 1173 1007 . 2456 4385 2025 1817 . 2205 . . . . . . . . . . . . . . . . . . Impact . | . . . . . . . . . . . . . . . . . . . . . . . . . . . . . . . . . . Slashing . | . . . . . . . . . . . . . . . . . . . . . . . . . . . . . . . . . . Piercing . | . . . . . . . . . . . . . . . . . . . . . . . . . . . . . . . . . . Highest Corruption 19 | . . . . . . 9 9 9 9 9 1 4 4 4 . . . 1 3 3 3 3 3 . . . . . 3 7 1 1 19 Average Corruption 5 | . . . . . . 3 9 9 9 9 1 2 4 4 . . . 1 1 3 3 3 3 . . . . . 2 4 1 1 10 Corruption Purged . | . . . . . . . . . . . . . . . . . . . . . . . . . . . . . . . . . . Corruption Blocked 40 | . . . . . . . . . . . . . . . . . . . . . . . . . . . 8 . . . 30 2 . Effects 679 | . . . . . . 102 56 60 5 77 3 40 36 2 . . . 13 8 27 30 6 18 . . . . . 5 26 4 2 159 Message Errors 171 | . . . . . . 23 20 12 1 19 1 13 7 1 . . . 5 2 9 3 1 6 . . . . . 1 7 1 1 38 Matter Fused 147 | . . . . . . 25 9 16 . 17 . 9 7 . . . . 2 1 3 8 1 1 . . . . . 3 9 . . 36 Heat Flow Errors 85 | . . . . . . 14 3 10 2 8 1 6 3 . . . . 3 . 2 5 1 4 . . . . . . 2 2 . 19 Energy Discharges 86 | . . . . . . 14 11 6 . 10 . 5 7 . . . . 1 2 4 5 1 . . . . . . . 4 . 1 15 Parts Rejected 6 | . . . . . . . . . . 1 . . . . . . . . . . . . . . . . . . . 1 . . 4 Parts Fused 7 | . . . . . . . 1 2 . 1 . . . . . . . . . 1 . . . . . . . . . . . . 2 Data Loss (minor) 63 | . . . . . . 7 6 8 . 9 . 2 3 1 . . . 1 1 5 2 1 3 . . . . . 1 . 1 . 12 Data Loss (major) 34 | . . . . . . 5 1 2 1 6 . 4 3 . . . . . 1 1 2 1 . . . . . . . . . . 7 Misfires 40 | . . . . . . 5 4 4 . 3 1 1 3 . . . . . 1 1 3 . 2 . . . . . . . . . 12 Alerts 14 | . . . . . . 3 . . 1 . . . 1 . . . . . . . 2 . 1 . . . . . . 3 . . 3 Weapon Failures 26 | . . . . . . 6 1 . . 3 . . 2 . . . . 1 . 1 . . 1 . . . . . . . . . 11 Overload Shots 15 | . . . . . . . 1 . . 1 . . . 3 10 . . . . . . . . . . . . . . . . . . Effects 1 | . . . . . . . . . . . . . . . 1 . . . . . . . . . . . . . . . . . . Short Circuit 1 | . . . . . . . . . . . . . . . 1 . . . . . . . . . . . . . . . . . . Overflow Damage 3884 | . . . . . . 29 61 40 . 13 239 19 18 . 343 66 143 174 235 131 60 . 95 184 143 161 29 108 306 126 152 295 714 Projectiles 3510 | . . . . . . 10 61 33 . 13 79 19 18 . 233 66 139 174 235 131 60 . 95 115 143 161 29 108 306 126 152 290 714 Explosions 370 | . . . . . . 19 . 7 . . 160 . . . 110 . . . . . . . . 69 . . . . . . . 5 . Melee 4 | . . . . . . . . . . . . . . . . . 4 . . . . . . . . . . . . . . . . Knockbacks 2 | . . . . . . 2 . . . . . . . . . . . . . . . . . . . . . . . . . . . Impact 2 | . . . . . . 2 . . . . . . . . . . . . . . . . . . . . . . . . . . . Kinetic . | . . . . . . . . . . . . . . . . . . . . . . . . . . . . . . . . . . Secondary . | . . . . . . . . . . . . . . . . . . . . . . . . . . . . . . . . . . Self-Inflicted Damage 483 | . . . . . . . . 32 . 103 166 . 7 . 102 . 11 . . . . . . . . . . . . . . 62 . Shots 14 | . . . . . . . . 1 . 2 5 . 1 . 3 . 1 . . . . . . . . . . . . . . 1 . Rammed 28 | . . 1 . . . 25 . . . . 2 . . . . . . . . . . . . . . . . . . . . . . Targets Rammed 33 | . . 1 . . . 27 . . . . 2 . . . . . 2 . . . . . . . . . . . . . . . 1 Kicked 3 | . . . . . . . . . . . . . . . . . 2 . . . . . . . . . . . . . . . 1 Crushed 2 | . . . . . . 2 . . . . . . . . . . . . . . . . . . . . . . . . . . . Highest Temperature 349 | . 134 285 . . 2 205 212 216 179 209 211 349 188 . 32 . . 175 . 127 137 . 158 . . . . . . 44 110 . 135 Average Temperature 69 | . 34 109 . . 2 98 40 67 76 35 58 95 63 . 12 . . 79 . 55 66 . 68 . . . . . . 43 68 . 65 Received Heat Transfer 7070 | . 105 48 . . 153 912 171 198 . 307 417 180 276 . 853 162 198 585 198 252 33 . 168 144 165 252 276 254 114 60 45 63 481 Effects 1 | . . . . . . . . . . . . 1 . . . . . . . . . . . . . . . . . . . . . Shutdowns 1 | . . . . . . . . . . . . 1 . . . . . . . . . . . . . . . . . . . . . Siege Activations . | . . . . . . . . . . . . . . . . . . . . . . . . . . . . . . . . . . Robots Corrupted 47 | . . . . . . . 2 1 . 9 14 5 7 . 9 . . . . . . . . . . . . . . . . . . Combat Hostiles 45 | . . . . . . . 2 1 . 9 13 5 7 . 8 . . . . . . . . . . . . . . . . . . Parts Fried 142 | . . . . . . 6 13 5 . 28 43 18 11 . 17 . . . . . . . . . . . . . . . . 1 . Impact Corruptions 1 | . . . . . . . . . . . . . . . . . 1 . . . . . . . . . . . . . . . . Robots Melted 1 | . . . . . . . . . . . . . . . . . . . . . . . . 1 . . . . . . . . . Combat Hostiles 1 | . . . . . . . . . . . . . . . . . . . . . . . . 1 . . . . . . . . . Parts Melted 57 | . . . . . . 1 . 1 . . 1 1 . . 1 . 7 2 1 . . . 2 6 1 2 1 3 5 2 3 4 13 Heat Transferred 41792 | . . . . . . 100 198 287 . 237 900 . 350 . 3723 1075 2350 3600 1876 1775 650 . 1350 2450 1475 1461 537 1300 2300 2000 1725 1598 8475 Parts Sabotaged . | . . . . . . . . . . . . . . . . . . . . . . . . . . . . . . . . . . Parts Stolen 1 | . . . . . . . 1 . . . . . . . . . . . . . . . . . . . . . . . . . . Parts Stripped . | . . . . . . . . . . . . . . . . . . . . . . . . . . . . . . . . . . Power Chain Reactions 17 | . . . . . . 1 . 4 . 2 5 . 3 . 2 . . . . . . . . . . . . . . . . . . Alert | -11 -10 -10 -10 -9 -8 -7 -7 -7 -7 -6 -6 -6 -6 -6 -6 -5 -5 -5 -5 -5 -5 -5 -4 -4 -4 -4 -4 -3 -3 -3 -2 -1 -1 ------- Run | Yrd Mat Min Exi Min Mat Fac Low Low Dat Pro Fac Low Low Zio Dee Pro Fac Gar Fac Upp Upp Zhi Pro Fac Upp Upp War Pro Res Tes Res Acc Com Peak Influence 1725 | . 271 174 . . 371 454 . . . . 692 . . . . . 540 1275 852 . . . . 675 . . . . 710 635 485 961 1725 Initial 579 | . . 89 . . . 144 . . . . . . . . . . 340 179 579 . . . . 49 . . . . . 249 279 162 540 Average 465 | . 98 94 . . 182 130 . . . . 476 . . . . . 281 769 667 . . . . 399 . . . . 316 438 323 555 1171 Maximum Alert Level 5 | . 1 . . . 1 2 . . . . 2 . . . . . 2 4 3 . . . . 2 . . . . 3 2 2 3 5 Low Security (%) 35 | 100 78 100 . 100 55 77 . . . . 4 . . . . . 20 3 . . . . . 19 . . . . 32 . 7 10 16 Level 1 21 | . 21 . . . 44 21 . . . . 20 . . . . . 69 18 . . . . . 18 . . . . 33 33 73 21 . Level 2 21 | . . . . . . 1 . . . . 74 . . . . . 10 17 60 . . . . 62 . . . . 33 66 19 35 8 Level 3 9 | . . . . . . . . . . . . . . . . . . 38 39 . . . . . . . . . 1 . . 31 22 Level 4 11 | . . . . . . . . . . . . . . . . . . 22 . . . . . . . . . . . . . . 48 Level 5 . | . . . . . . . . . . . . . . . . . . . . . . . . . . . . . . . . . 3 High Security . | . . . . . . . . . . . . . . . . . . . . . . . . . . . . . . . . . . Max Security . | . . . . . . . . . . . . . . . . . . . . . . . . . . . . . . . . . . Squads Dispatched 94 | . . . . . 3 37 . . . 2 10 . 1 . . . 5 . 2 . . . . 5 . 1 . . 2 4 1 6 15 Investigation 18 | . . . . . 2 10 . . . 2 1 . . . . . 2 . . . . . . . . . . . . . . . 1 Extermination 32 | . . . . . . 12 . . . . 3 . . . . . 3 . 1 . . . . 2 . . . . 1 2 . 1 7 Reinforcement 16 | . . . . . 1 5 . . . . 3 . . . . . . . . . . . . 2 . . . . 1 2 1 1 . Assault 13 | . . . . . . . . . . . 2 . 1 . . . . . 1 . . . . . . 1 . . . . . 1 7 Garrison 15 | . . . . . . 10 . . . . 1 . . . . . . . . . . . . 1 . . . . . . . 3 . Intercept . | . . . . . . . . . . . . . . . . . . . . . . . . . . . . . . . . . . Searches Triggered 1 | . . . . . . . . . . . . . . . . . 1 . . . . . . . . . . . . . . . . Construction Impeded 3 | . . . . . . . . . . . 3 . . . . . . . . . . . . . . . . . . . . . . Haulers Reinforced 1 | . . . . . . . . . . . . . . . . . . . . . . . . . . . . . 1 . . . . Active Scanning Responses . | . . . . . . . . . . . . . . . . . . . . . . . . . . . . . . . . . . Cargo Convoy Interrupts . | . . . . . . . . . . . . . . . . . . . . . . . . . . . . . . . . . . Stealth | -11 -10 -10 -10 -9 -8 -7 -7 -7 -7 -6 -6 -6 -6 -6 -6 -5 -5 -5 -5 -5 -5 -5 -4 -4 -4 -4 -4 -3 -3 -3 -2 -1 -1 --------- Run | Yrd Mat Min Exi Min Mat Fac Low Low Dat Pro Fac Low Low Zio Dee Pro Fac Gar Fac Upp Upp Zhi Pro Fac Upp Upp War Pro Res Tes Res Acc Com Distress Signals 22 | . 1 . . . 4 3 . . . . . . . . . . 1 . . . . . . 1 . . 1 . . 2 4 1 4 Communications Jammed . | . . . . . . . . . . . . . . . . . . . . . . . . . . . . . . . . . . Distress Signals . | . . . . . . . . . . . . . . . . . . . . . . . . . . . . . . . . . . Times Spotted 837 | . 16 7 . . 14 107 14 16 . 29 60 23 20 . 81 16 24 33 20 22 3 . 15 20 12 19 21 11 33 28 25 31 117 Peak Tracking Total 37 | . 5 3 . . 7 6 3 4 . 5 5 7 7 . 37 8 6 7 6 8 1 . 5 4 5 7 8 3 9 4 4 9 16 Tactical Retreats 33 | . . . . . 1 1 . 1 . 2 . 1 . . 7 . . 4 . 2 . . . 1 . 1 . . . . 1 3 8 Traps | -11 -10 -10 -10 -9 -8 -7 -7 -7 -7 -6 -6 -6 -6 -6 -6 -5 -5 -5 -5 -5 -5 -5 -4 -4 -4 -4 -4 -3 -3 -3 -2 -1 -1 ------- Run | Yrd Mat Min Exi Min Mat Fac Low Low Dat Pro Fac Low Low Zio Dee Pro Fac Gar Fac Upp Upp Zhi Pro Fac Upp Upp War Pro Res Tes Res Acc Com Traps Triggered 19 | . . . . . 1 7 . . . . . . . . . . 1 5 . . . . . . . . . . 3 . . . 2 Indirectly . | . . . . . . . . . . . . . . . . . . . . . . . . . . . . . . . . . . Trap Hack Attempts . | . . . . . . . . . . . . . . . . . . . . . . . . . . . . . . . . . . Triggered . | . . . . . . . . . . . . . . . . . . . . . . . . . . . . . . . . . . Disarmed . | . . . . . . . . . . . . . . . . . . . . . . . . . . . . . . . . . . Reprogrammed 26 | . 4 . . . . 12 . . . . 10 . . . . . . . . . . . . . . . . . . . . . . Reused 4 | . . . . . . 2 . . . . 2 . . . . . . . . . . . . . . . . . . . . . . Traps Extracted . | . . . . . . . . . . . . . . . . . . . . . . . . . . . . . . . . . . Installed 24 | . . . . . . . . . . . . . . . . . . . . . 1 . . . 1 22 . . . . . . . Triggered 33 | . . . . . . 2 1 1 . . 2 . 2 . . . . . . . . . . . . 1 24 . . . . . . Machines | -11 -10 -10 -10 -9 -8 -7 -7 -7 -7 -6 -6 -6 -6 -6 -6 -5 -5 -5 -5 -5 -5 -5 -4 -4 -4 -4 -4 -3 -3 -3 -2 -1 -1 ---------- Run | Yrd Mat Min Exi Min Mat Fac Low Low Dat Pro Fac Low Low Zio Dee Pro Fac Gar Fac Upp Upp Zhi Pro Fac Upp Upp War Pro Res Tes Res Acc Com Machines Disabled 75 | . 1 . . . . 3 1 1 . 3 23 . 1 3 3 1 3 9 3 . . . . 5 . . . . 2 3 1 5 4 Max in Single Turn 10 | . 1 . . . . 3 1 1 . 1 10 . 1 1 1 1 1 1 1 . . . . 5 . . . . 1 1 1 1 1 Garrison Access 2 | . . . . . . . . . . . 1 . . . . . . . . . . . . . . . . . . . 1 . . Garrison Relay 3 | . . . . . . . . . . . . . . . . . . 3 . . . . . . . . . . . . . . . Machines Repaired . | . . . . . . . . . . . . . . . . . . . . . . . . . . . . . . . . . . Machines Dismantled . | . . . . . . . . . . . . . . . . . . . . . . . . . . . . . . . . . . Machines Sabotaged . | . . . . . . . . . . . . . . . . . . . . . . . . . . . . . . . . . . Overloaded Fab Kills . | . . . . . . . . . . . . . . . . . . . . . . . . . . . . . . . . . . Hacking | -11 -10 -10 -10 -9 -8 -7 -7 -7 -7 -6 -6 -6 -6 -6 -6 -5 -5 -5 -5 -5 -5 -5 -4 -4 -4 -4 -4 -3 -3 -3 -2 -1 -1 --------- Run | Yrd Mat Min Exi Min Mat Fac Low Low Dat Pro Fac Low Low Zio Dee Pro Fac Gar Fac Upp Upp Zhi Pro Fac Upp Upp War Pro Res Tes Res Acc Com Machines Accessed 83 | . 3 1 1 . 1 23 . 1 2 2 10 1 . . . . 4 1 3 . 1 7 . 1 1 2 3 1 2 2 1 . 9 Terminals 52 | . 3 . . . 1 15 . . . 1 9 . . . . . 3 1 3 . . . . 1 . . . 1 2 2 1 . 9 Fabricators 5 | . . . . . . 4 . . . 1 . . . . . . . . . . . . . . . . . . . . . . . Repair Stations . | . . . . . . . . . . . . . . . . . . . . . . . . . . . . . . . . . . Recycling Units . | . . . . . . . . . . . . . . . . . . . . . . . . . . . . . . . . . . Scanalyzers . | . . . . . . . . . . . . . . . . . . . . . . . . . . . . . . . . . . Garrison Access 6 | . . . . . . 4 . . . . 1 . . . . . 1 . . . . . . . . . . . . . . . . Total Hacks 274 | . 10 1 1 . 2 67 . 9 11 4 45 1 . . . . 9 2 7 . 1 29 . 8 1 2 6 1 22 10 3 . 22 Successful 193 | . 6 1 1 . 2 40 . 9 11 4 29 1 . . . . 4 1 3 . 1 29 . 4 1 2 6 1 17 7 1 . 12 Failed 80 | . 4 . . . . 27 . . . . 16 . . . . . 5 1 4 . . . . 4 . . . . 4 3 2 . 10 Catastrophic 11 | . . . . . . 4 . . . . 2 . . . . . 1 . 2 . . . . . . . . . 1 1 . . . Database Lockouts 1 | . . . . . . . . . . . . . . . . . . . . . . . . . . . . . 1 . . . . Manual 127 | . 6 . . . 2 44 . . . . 34 . . . . . 7 . 6 . . . . 7 . . . . 7 4 . . 10 Terminals 190 | . 10 . . . 2 52 . . . 1 42 . . . . . 8 2 7 . . . . 8 . . . 1 22 10 3 . 22 Fabricators 11 | . . . . . . 8 . . . 3 . . . . . . . . . . . . . . . . . . . . . . . Repair Stations . | . . . . . . . . . . . . . . . . . . . . . . . . . . . . . . . . . . Recycling Units . | . . . . . . . . . . . . . . . . . . . . . . . . . . . . . . . . . . Scanalyzers . | . . . . . . . . . . . . . . . . . . . . . . . . . . . . . . . . . . Garrison Access 11 | . . . . . . 7 . . . . 3 . . . . . 1 . . . . . . . . . . . . . . . . Terminal Hacks 148 | . 4 1 1 . 2 17 . 9 11 1 23 1 . . . . 2 1 2 . 1 29 . 3 1 2 6 1 15 7 1 . 7 Record 86 | . 1 . 1 . . 4 . 9 11 . 13 . . . . . 1 . 1 . . 17 . 1 . . 4 1 13 4 1 . 4 Part Schematic 8 | . . . . . . 2 . . . . 2 . . . . . . . . . . 4 . . . . . . . . . . . Robot Analysis 11 | . 1 . . . . 4 . . . . 1 . . . . . . . . . . 4 . . . . . . . 1 . . . Prototype ID Bank 4 | . . . . . . . . . . . . . . . . . . . . . . 4 . . . . . . . . . . . Open Door 10 | . . 1 . . . . . . . 1 . 1 . . . . . . . . 1 . . . 1 2 2 . . . . . 1 Level Access Points 6 | . . . . . 1 1 . . . . 1 . . . . . . . . . . . . 1 . . . . 1 1 . . . Branch Access Points 6 | . . . . . 1 . . . . . 1 . . . . . . . 1 . . . . 1 . . . . 1 1 . . . Machine Index 2 | . . . . . . 1 . . . . 1 . . . . . . . . . . . . . . . . . . . . . . Terminal Index 3 | . . . . . . 1 . . . . 1 . . . . . 1 . . . . . . . . . . . . . . . . Locate Traps 1 | . 1 . . . . . . . . . . . . . . . . . . . . . . . . . . . . . . . . Reprogram Traps 6 | . 1 . . . . 3 . . . . 2 . . . . . . . . . . . . . . . . . . . . . . Hauler Manifests 1 | . . . . . . . . . . . 1 . . . . . . . . . . . . . . . . . . . . . . Zone Layout 1 | . . . . . . 1 . . . . . . . . . . . . . . . . . . . . . . . . . . . Security Stations 1 | . . . . . . . . . . . . . . . . . . 1 . . . . . . . . . . . . . . . Disengage Seal 2 | . . . . . . . . . . . . . . . . . . . . . . . . . . . . . . . . . 2 Fabricator Hacks 11 | . . . . . . 8 . . . 3 . . . . . . . . . . . . . . . . . . . . . . . Load Schematic 5 | . . . . . . 4 . . . 1 . . . . . . . . . . . . . . . . . . . . . . . Build 6 | . . . . . . 4 . . . 2 . . . . . . . . . . . . . . . . . . . . . . . Repair Station Hacks . | . . . . . . . . . . . . . . . . . . . . . . . . . . . . . . . . . . Recycling Unit Hacks . | . . . . . . . . . . . . . . . . . . . . . . . . . . . . . . . . . . Scanalyzer . | . . . . . . . . . . . . . . . . . . . . . . . . . . . . . . . . . . Garrison Access Hacks 1 | . . . . . . . . . . . . . . . . . 1 . . . . . . . . . . . . . . . . Unlock Access 1 | . . . . . . . . . . . . . . . . . 1 . . . . . . . . . . . . . . . . Unauthorized Hacks 33 | . 2 . . . . 15 . . . . 6 . . . . . 1 . 1 . . . . 1 . . . . 2 . . . 5 Terminals 27 | . 2 . . . . 10 . . . . 5 . . . . . 1 . 1 . . . . 1 . . . . 2 . . . 5 Assimilate 4 | . . . . . . 3 . . . . 1 . . . . . . . . . . . . . . . . . . . . . . Botnet 23 | . 2 . . . . 7 . . . . 4 . . . . . 1 . 1 . . . . 1 . . . . 2 . . . 5 Fabricators . | . . . . . . . . . . . . . . . . . . . . . . . . . . . . . . . . . . Repair Stations . | . . . . . . . . . . . . . . . . . . . . . . . . . . . . . . . . . . Recycling Units . | . . . . . . . . . . . . . . . . . . . . . . . . . . . . . . . . . . Scanalyzers . | . . . . . . . . . . . . . . . . . . . . . . . . . . . . . . . . . . Garrison Access 6 | . . . . . . 5 . . . . 1 . . . . . . . . . . . . . . . . . . . . . . Reprogram 5 | . . . . . . 4 . . . . 1 . . . . . . . . . . . . . . . . . . . . . . Watchers 1 | . . . . . . 1 . . . . . . . . . . . . . . . . . . . . . . . . . . . Data Cores Recovered 5 | . . . . . . . . . . . 2 . . . . . . . . . . . . . . . . . 2 . . . 1 Used 1 | . . . . . . . . . . . 1 . . . . . . . . . . . . . . . . . . . . . . Hacking Detections 47 | . 1 . . . 1 21 . . . 1 7 . . . . . 2 . 3 . . . . . . . . . 2 2 1 . 6 Full Trace Events 7 | . . . . . . 5 . . . 1 . . . . . . 1 . . . . . . . . . . . . . . . . Feedback Events . | . . . . . . . . . . . . . . . . . . . . . . . . . . . . . . . . . . Feedback Blocked . | . . . . . . . . . . . . . . . . . . . . . . . . . . . . . . . . . . Robot Schematics Acquired 3 | . . . . . . . . . . . . . . 3 . . . . . . . . . . . . . . . . . . . Robots Built 2 | . . . . . . . . . . 2 . . . . . . . . . . . . . . . . . . . . . . . Authchips . | . . . . . . . . . . . . . . . . . . . . . . . . . . . . . . . . . . Time 76 | . . . . . . . . . . 76 . . . . . . . . . . . . . . . . . . . . . . . Total Robot Build Rating 10 | . . . . . . . . . . 10 . . . . . . . . . . . . . . . . . . . . . . . Part Schematics Acquired 22 | . . . . . . 2 . . . . 2 . . 14 . . . . . . . 4 . . . . . . . . . . . Parts Built 5 | . . . . . . 4 . . . 1 . . . . . . . . . . . . . . . . . . . . . . . Authchips . | . . . . . . . . . . . . . . . . . . . . . . . . . . . . . . . . . . Time 255 | . . . . . . 208 . . . 47 . . . . . . . . . . . . . . . . . . . . . . . Total Part Build Rating 24 | . . . . . . 19 . . . 5 . . . . . . . . . . . . . . . . . . . . . . . Parts Repaired . | . . . . . . . . . . . . . . . . . . . . . . . . . . . . . . . . . . Time . | . . . . . . . . . . . . . . . . . . . . . . . . . . . . . . . . . . Parts Recycled . | . . . . . . . . . . . . . . . . . . . . . . . . . . . . . . . . . . Recycled Matter . | . . . . . . . . . . . . . . . . . . . . . . . . . . . . . . . . . . Retrieved Matter . | . . . . . . . . . . . . . . . . . . . . . . . . . . . . . . . . . . Retrieved Components . | . . . . . . . . . . . . . . . . . . . . . . . . . . . . . . . . . . Parts Scanalyzed . | . . . . . . . . . . . . . . . . . . . . . . . . . . . . . . . . . . Part Schematics Acquired . | . . . . . . . . . . . . . . . . . . . . . . . . . . . . . . . . . . Parts Damaged . | . . . . . . . . . . . . . . . . . . . . . . . . . . . . . . . . . . Bothacking | -11 -10 -10 -10 -9 -8 -7 -7 -7 -7 -6 -6 -6 -6 -6 -6 -5 -5 -5 -5 -5 -5 -5 -4 -4 -4 -4 -4 -3 -3 -3 -2 -1 -1 ------------ Run | Yrd Mat Min Exi Min Mat Fac Low Low Dat Pro Fac Low Low Zio Dee Pro Fac Gar Fac Upp Upp Zhi Pro Fac Upp Upp War Pro Res Tes Res Acc Com Used RIF Installer . | . . . . . . . . . . . . . . . . . . . . . . . . . . . . . . . . . . Robots Hacked . | . . . . . . . . . . . . . . . . . . . . . . . . . . . . . . . . . . Non-combat . | . . . . . . . . . . . . . . . . . . . . . . . . . . . . . . . . . . Combat . | . . . . . . . . . . . . . . . . . . . . . . . . . . . . . . . . . . Robot Hacks Applied . | . . . . . . . . . . . . . . . . . . . . . . . . . . . . . . . . . . Relay Couplers Released 9 | . . . . . . 2 . . . . 1 . . . . . . 4 . . . . . . . . . . . . 2 . . Machine Destruction 7 | . . . . . . . . . . . 1 . . . . . . 4 . . . . . . . . . . . . 2 . . Programmers 2 | . . . . . . 2 . . . . . . . . . . . . . . . . . . . . . . . . . . . Fabnet Peak Effective % . | . . . . . . . . . . . . . . . . . . . . . . . . . . . . . . . . . . Robots Rewired 20 | . . . . . . . . . . 11 . 2 2 . . . . 2 . 2 . . . . . 1 . . . . . . . Allies Hacked 2 | . . . . . . 2 . . . . . . . . . . . . . . . . . . . . . . . . . . . Hacks Repelled . | . . . . . . . . . . . . . . . . . . . . . . . . . . . . . . . . . . Allies | -11 -10 -10 -10 -9 -8 -7 -7 -7 -7 -6 -6 -6 -6 -6 -6 -5 -5 -5 -5 -5 -5 -5 -4 -4 -4 -4 -4 -3 -3 -3 -2 -1 -1 -------- Run | Yrd Mat Min Exi Min Mat Fac Low Low Dat Pro Fac Low Low Zio Dee Pro Fac Gar Fac Upp Upp Zhi Pro Fac Upp Upp War Pro Res Tes Res Acc Com Total Allies 53 | . . 2 . 3 . 11 . 2 . 13 2 2 2 . . . . 4 . 2 . . . . . 1 . . . . . 6 3 Largest Group 11 | . . 2 2 3 3 4 . 2 . 11 11 2 1 1 1 . . 4 3 2 . . . . . 1 . . . . . 6 3 Highest-Rated Group 498 | . . 45 45 40 40 80 . 40 . 292 292 61 29 20 20 . . 228 199 59 . . . . . 47 . . . . . 498 376 Highest-Rated Ally 135 | . . 31 31 16 16 32 . 20 . 43 43 32 29 20 20 . . 85 85 30 . . . . . 47 . . . . . 135 132 Total Orders 1 | . . . . . . 1 . . . . . . . . . . . . . . . . . . . . . . . . . . . STAY 1 | . . . . . . 1 . . . . . . . . . . . . . . . . . . . . . . . . . . . Ally Attacks 343 | . . 4 . . 25 98 . 2 . 18 103 11 5 . . . . 15 . 6 . . . . . 2 . . . . . 52 2 Total Damage 7830 | . . 42 . . 269 1710 . 47 . 431 2125 285 56 . . . . 754 . 110 . . . . . . . . . . . 1976 25 Kills 45 | . . 1 . . . 18 . 1 . 4 12 . . . . . . 2 . 1 . . . . . . . . . . . 6 . Allies Corrupted . | . . . . . . . . . . . . . . . . . . . . . . . . . . . . . . . . . . Allies Melted . | . . . . . . . . . . . . . . . . . . . . . . . . . . . . . . . . . . Intel | -11 -10 -10 -10 -9 -8 -7 -7 -7 -7 -6 -6 -6 -6 -6 -6 -5 -5 -5 -5 -5 -5 -5 -4 -4 -4 -4 -4 -3 -3 -3 -2 -1 -1 ------- Run | Yrd Mat Min Exi Min Mat Fac Low Low Dat Pro Fac Low Low Zio Dee Pro Fac Gar Fac Upp Upp Zhi Pro Fac Upp Upp War Pro Res Tes Res Acc Com Robot Analysis Total 11 | . 1 . . . . 4 . . . . 1 . . . . . . . . . . 4 . . . . . . . 1 . . . Derelict Logs Recovered 16 | . . 1 . . . . 1 1 . 1 . 2 2 . . 2 . . . 1 2 . 1 . 1 1 . . . . . . . Drone Launches . | . . . . . . . . . . . . . . . . . . . . . . . . . . . . . . . . . . Drone Recoveries . | . . . . . . . . . . . . . . . . . . . . . . . . . . . . . . . . . . Exploration | -11 -10 -10 -10 -9 -8 -7 -7 -7 -7 -6 -6 -6 -6 -6 -6 -5 -5 -5 -5 -5 -5 -5 -4 -4 -4 -4 -4 -3 -3 -3 -2 -1 -1 ------------- Run | Yrd Mat Min Exi Min Mat Fac Low Low Dat Pro Fac Low Low Zio Dee Pro Fac Gar Fac Upp Upp Zhi Pro Fac Upp Upp War Pro Res Tes Res Acc Com Turns Passed 52223 | 87 771 891 600 103 332 6620 1528 1762 174 2249 2825 3114 1576 1001 2764 1117 1518 1545 889 1598 1795 288 1194 525 2690 1227 1741 1240 814 1190 931 635 4889 Spaces Moved 25783 | 50 397 500 376 65 157 3501 615 720 76 1070 1570 1245 795 636 1018 552 695 608 402 810 972 133 609 201 1407 600 939 605 350 556 570 390 2593 Core 3 | 3 . . . . . . . . . . . . . . . . . . . . . . . . . . . . . . . . . Treads 12354 | 47 397 500 376 65 157 3501 615 720 76 1070 1570 1245 795 636 584 . . . . . . . . . . . . . . . . . . Legs 13426 | . . . . . . . . . . . . . . . 434 552 695 608 402 810 972 133 609 201 1407 600 939 605 350 556 570 390 2593 Wheels . | . . . . . . . . . . . . . . . . . . . . . . . . . . . . . . . . . . Hover . | . . . . . . . . . . . . . . . . . . . . . . . . . . . . . . . . . . Flight . | . . . . . . . . . . . . . . . . . . . . . . . . . . . . . . . . . . Fastest Speed 50 | 50 160 160 160 160 160 152 232 232 232 155 155 232 155 155 155 180 180 180 180 180 180 150 180 180 180 180 180 180 179 136 120 120 120 Average Speed 174 | 153 160 160 160 160 160 158 232 232 232 179 155 235 183 155 199 180 180 180 180 180 180 160 180 180 180 180 180 181 179 177 129 120 144 Slowest Speed 320 | 160 160 160 160 160 160 240 232 232 232 232 235 320 235 155 240 180 180 180 180 180 180 180 180 180 180 180 180 183 183 179 190 120 190 Overloaded Moves . | . . . . . . . . . . . . . . . . . . . . . . . . . . . . . . . . . . Propulsion Burnouts . | . . . . . . . . . . . . . . . . . . . . . . . . . . . . . . . . . . Robots Hopped . | . . . . . . . . . . . . . . . . . . . . . . . . . . . . . . . . . . Cave-ins Triggered . | . . . . . . . . . . . . . . . . . . . . . . . . . . . . . . . . . . Exploration Rate (%) 62 | 4 80 96 88 21 16 76 73 85 68 90 43 98 86 78 80 77 23 65 16 88 94 62 83 7 99 70 91 89 11 54 21 13 64 Regions Visited 33 Branch Regions 22 Pre-discovered Areas 9 | . . 1 . . . . . . 1 1 . 1 . . . . . . . 1 . 3 . . 1 . . . . . . . . Known Exits Taken 22 | . 1 1 1 1 1 1 1 1 1 1 1 . 1 1 1 1 1 . 1 . . . . 1 . . . 1 1 1 . 1 . Unknown Exits Taken 10 | 1 . . . . . . . . . . . 1 . . . . . . . 1 1 1 1 . 1 1 1 . . . 1 . . Scrap Searched 49 | . . 3 . 1 . . 2 3 . 4 . 11 3 2 . 1 . . . 4 2 . 3 . 5 1 . 4 . . . . . Spaces Dug 49 | . . . . . . . . . . . . . . . . . . 2 . . . . . . 18 . . . . . . 2 27 Terrain Destroyed 771 | . . . . . . 66 . 15 . 5 114 . 18 . 49 28 33 30 22 15 10 . 15 50 37 18 9 19 27 23 24 50 94 Melee . | . . . . . . . . . . . . . . . . . . . . . . . . . . . . . . . . . . Projectile 440 | . . . . . . 1 . . . 1 . . . . 23 28 24 30 22 15 10 . 15 8 37 18 9 19 27 23 24 12 94 AOE 331 | . . . . . . 65 . 15 . 4 114 . 18 . 26 . 9 . . . . . . 42 . . . . . . . 38 . Terrain Rammed . | . . . . . . . . . . . . . . . . . . . . . . . . . . . . . . . . . . Walls Destroyed . | . . . . . . . . . . . . . . . . . . . . . . . . . . . . . . . . . . Machines Disabled . | . . . . . . . . . . . . . . . . . . . . . . . . . . . . . . . . . . Actions | -11 -10 -10 -10 -9 -8 -7 -7 -7 -7 -6 -6 -6 -6 -6 -6 -5 -5 -5 -5 -5 -5 -5 -4 -4 -4 -4 -4 -3 -3 -3 -2 -1 -1 --------- Run | Yrd Mat Min Exi Min Mat Fac Low Low Dat Pro Fac Low Low Zio Dee Pro Fac Gar Fac Upp Upp Zhi Pro Fac Upp Upp War Pro Res Tes Res Acc Com Total 30383 | 57 474 557 375 64 207 4264 677 774 75 1307 1817 1347 863 646 1527 621 863 895 480 883 993 211 655 281 1493 689 963 693 436 678 690 488 3340 Wait 1813 | . 24 27 . . 9 435 . 15 . 96 126 7 3 . 237 23 89 132 8 8 1 73 . 9 16 3 2 13 14 30 52 38 323 Move 25749 | 49 396 499 375 64 156 3500 614 719 75 1069 1569 1244 794 635 1017 551 694 607 401 809 971 132 608 200 1406 599 938 604 349 555 569 389 2592 Hop . | . . . . . . . . . . . . . . . . . . . . . . . . . . . . . . . . . . Pick Up 23 | . 2 . . . . 9 1 . . 3 1 . 1 . 1 1 . . . 2 . . . . 1 . . . . 1 . . . Fast Attach 80 | 7 4 1 . . 2 19 1 . . 3 6 10 3 2 9 . . . . . . . . . . 1 1 1 . 1 . . 9 Attach 10 | . . 2 . . . 2 . . . . . . . . 3 . 1 2 . . . . . . . . . . . . . . . Detach 15 | . . 1 . . . . . . . . . . . . 4 . 3 . . . . 4 . . . 1 . . . . . . 2 Swap 40 | . 2 2 . . 1 14 1 . . 2 . 2 1 4 3 1 . . . . . . . . . . . . 1 . 3 . 3 Drop 96 | 1 3 . . . 2 27 1 . . 4 6 9 3 2 27 . . . . . . 2 . . . . . . 1 2 3 . 3 Fire 1214 | . 37 19 . . 18 131 22 17 . 41 52 34 21 3 123 24 44 73 39 30 11 . 23 37 32 26 12 24 44 38 32 31 176 Melee . | . . . . . . . . . . . . . . . . . . . . . . . . . . . . . . . . . . Ram . | . . . . . . . . . . . . . . . . . . . . . . . . . . . . . . . . . . Kick 3 | . . . . . . . . . . . . . . . . . 2 . . . . . . . . . . . . . . . 1 Crush 30 | . . 1 . . . 27 . . . . 2 . . . . . . . . . . . . . . . . . . . . . . Escape Stasis 15 | . . . . . . . . . . . . . . . . . . 10 . . . . . . . . . . . . . . 5 Rewire 88 | . . . . . . 2 . . . 40 . 7 9 . 1 . . 11 . 3 . . . . . 7 . . . . 1 4 3 Trap 24 | . . . . . . . . . . . . . . . . . . . . . 1 . . . 1 22 . . . . . . . Miscellaneous 1183 | . 6 5 . . 19 98 37 23 . 49 55 34 28 . 102 21 30 60 32 31 9 . 24 35 37 30 10 51 27 51 30 26 223 Route ------- -11/Scrapyard -10/Materials (discovered 4 exits: *Mat x3 / *Min) -10/Mines (discovered 3 exits: *Mat x2 / *Exi) -10/Exiles -9/Mines -8/Materials (discovered 4 exits: *Fac x3 / Sto) -7/Factory (discovered 6 exits: *Fac x4 / *Low x2) -7/Lower Caves -7/Lower Caves (discovered 2 exits: *Fac / *Dat) -7/Data Miner -6/Proximity Caves -6/Factory (discovered 8 exits: *Fac x4 / *Low x2 / Ext x2) -6/Lower Caves -6/Lower Caves (discovered 2 exits: Fac / *Zio) -6/Zion -6/Deep Caves -5/Proximity Caves -5/Factory (discovered 2 exits: Upp / Gar) -5/Garrison (discovered 3 exits: *Fac x3) -5/Factory (discovered 3 exits: *Fac / *Upp x2) -5/Upper Caves -5/Upper Caves -5/Zhirov -4/Proximity Caves -4/Factory (discovered 7 exits: *Res x4 / *Upp x2 / Arm) -4/Upper Caves -4/Upper Caves (discovered 2 exits: *Res / *War) -4/Warlord -3/Proximity Caves -3/Research (discovered 5 exits: Res x3 / *Tes x2) -3/Testing -2/Research (discovered 2 exits: *Acc / [*Qua]) -1/Access (discovered 2 exits: Sur / *Com) -1/Command To Epsilon Eridani History --------- Turn | Location | Event 1 | -11/Scrapyard | Upgraded with Power slot (x1) 1 | -11/Scrapyard | Upgraded with Propulsion slot (x1) 1 | -11/Scrapyard | Upgraded with Utility slot (x2) 1 | -11/Scrapyard | Upgraded with Weapon slot (x1) 25 | -11/Scrapyard | Discovered new exit (range 16) 88 | -11/Scrapyard | Entered Materials 305 | -10/Materials | Build established: Mutant 500 | -10/Materials | Discovered new exit (range 10) 588 | -10/Materials | Discovered new exit (range 14) 730 | -10/Materials | Discovered new exit (range 10) 827 | -10/Materials | Discovered new exit (range 6) 833 | -10/Materials | Identified exit to Mines 859 | -10/Materials | Entered Mines 861 | -10/Mines | Reached level 2 869 | -10/Mines | Upgraded with Weapon slot (x2) 871 | -10/Mines | Discovered new exit (range 14) 890 | -10/Mines | Identified exit to Materials 1030 | -10/Mines | Met a Derelict who couldn't figure out how to use a Trap Extractor 1075 | -10/Mines | A weapon hastily lodged in a ceiling crevice suddenly fell to the ground 1132 | -10/Mines | Discovered exit to Materials (range 7) 1176 | -10/Mines | Build established: Skirmisher 1193 | -10/Mines | Learned location of Storage (-8) 1730 | -10/Mines | Deemed a non-threat by the Exiles lab entrance 1730 | -10/Mines | Discovered new exit (range 5) 1739 | -10/Mines | Identified exit to Exiles 1750 | -10/Mines | Entered Exiles 1750 | -10/Exiles | Found Exiles lab abandoned 1750 | -10/Exiles | Accompanied by 2 allies 1780 | -10/Exiles | Led the pair of lost Derelicts to a safe place 2334 | -10/Exiles | Discovered new exit (range 10) 2346 | -10/Exiles | Identified exit to Mines 2350 | -10/Exiles | Entered Mines 2352 | -9/Mines | Reached level 3 2357 | -9/Mines | Assisted by bots powering up and referring to "LRC-V3" 2367 | -9/Mines | Met a Derelict bent on vengeance 2410 | -9/Mines | Discovered new exit (range 14) 2429 | -9/Mines | Identified exit to Materials 2453 | -9/Mines | Entered Materials 2453 | -8/Materials | Accompanied by 3 allies 2455 | -8/Materials | Reached level 4 2455 | -8/Materials | Reached level 5 2455 | -8/Materials | Reached level 6 2556 | -8/Materials | Identified exit to Factory 2556 | -8/Materials | Identified exit to Storage 2618 | -8/Materials | Reached level 7 2778 | -8/Materials | Build established: Hacker-Skirmisher 2785 | -8/Materials | Entered Factory 2787 | -7/Factory | Reached level 8 2787 | -7/Factory | Reached level 9 2792 | -7/Factory | Upgraded with Utility slot (x1) 3111 | -7/Factory | Discovered new exit (range 16) 3165 | -7/Factory | Reached level 10 3478 | -7/Factory | Build established: Hacker-Tank 3823 | -7/Factory | Reached level 11 4285 | -7/Factory | Garrison activated, responded to threat 4292 | -7/Factory | Reached level 12 4453 | -7/Factory | Discovered new exit (range 15) 4519 | -7/Factory | Reached level 13 4525 | -7/Factory | Upgraded with Utility slot (x1) 4688 | -7/Factory | Garrison activated, responded to threat 5389 | -7/Factory | Reached level 14 5598 | -7/Factory | Discovered new exit (range 11) 5832 | -7/Factory | Discovered new exit (range 5) 5838 | -7/Factory | Identified exit to Lower Caves 5898 | -7/Factory | Garrison activated, responded to threat 6409 | -7/Factory | Identified exit to Factory 6545 | -7/Factory | Reached level 15 6975 | -7/Factory | Garrison activated, responded to threat 7369 | -7/Factory | Discovered exit to Factory (range 16) 7383 | -7/Factory | Found Powered Armor 7889 | -7/Factory | Fabricated Cld. Particle Cannon (x1) 8400 | -7/Factory | Fabricated Proton Cannon (x1) 8598 | -7/Factory | Fabricated Proton Cannon (x1) 9083 | -7/Factory | Fabricated Proton Cannon (x1) 9165 | -7/Factory | Reached level 16 9169 | -7/Factory | Upgraded with Power slot (x1) 9405 | -7/Factory | Entered Lower Caves 9842 | -7/Lower Caves | Attacked by a delusional Derelict stockpiling parts 10626 | -7/Lower Caves | Encountered a Warlord checkpoint 10669 | -7/Lower Caves | Discovered new exit (range 3) 10674 | -7/Lower Caves | Identified exit to Lower Caves 10933 | -7/Lower Caves | Entered another Lower Caves area 10937 | -7/Lower Caves | Encountered a Warlord checkpoint 11141 | -7/Lower Caves | Destroyed 7 combat bots 11436 | -7/Lower Caves | Discovered exit to Factory (range 13) 11728 | -7/Lower Caves | Learned Factory trap positions 11728 | -7/Lower Caves | Learned Extension terminal intel 11728 | -7/Lower Caves | Learned Armory terminal intel 11730 | -7/Lower Caves | A Commander dispatched an escort 11946 | -7/Lower Caves | Learned 4 Factory zone layouts 11962 | -7/Lower Caves | Discovered new exit (range 5) 11969 | -7/Lower Caves | Identified exit to Data Miner 12695 | -7/Lower Caves | Entered Data Miner 12695 | -7/Data Miner | Accompanied by 2 allies 12695 | -7/Data Miner | Discovered new exit (range 6) 12696 | -7/Data Miner | Commander's escort returned to base 12696 | -7/Data Miner | Commander's escort returned to base 12697 | -7/Data Miner | Reached level 17 12705 | -7/Data Miner | Identified exit to Proximity Caves 12742 | -7/Data Miner | Met Data Miner 12784 | -7/Data Miner | Learned location of Section 7 (-2) 12784 | -7/Data Miner | Acquired the access code to Warlord's prototype stash 12791 | -7/Data Miner | Upgraded with Power slot (x1) 12791 | -7/Data Miner | Upgraded with Propulsion slot (x1) 12814 | -7/Data Miner | Received God Mode back door access code from Data Miner 12869 | -7/Data Miner | Entered Proximity Caves 12946 | -6/Proximity Caves | Learned location of Extension (-6) 13396 | -6/Proximity Caves | Spotted B-75 Beast 13409 | -6/Proximity Caves | Reached level 18 13409 | -6/Proximity Caves | Destroyed B-75 Beast 14006 | -6/Proximity Caves | Entered a huge 0b10 base via the front door 14013 | -6/Proximity Caves | Spotted B-75 Beast 14089 | -6/Proximity Caves | Destroyed B-75 Beast 14217 | -6/Proximity Caves | Derelicts attacked a huge 0b10 base 14254 | -6/Proximity Caves | Discovered exit to Factory (range 15) 14949 | -6/Proximity Caves | Fabricated X-67 Chaingunner (x2) 14999 | -6/Proximity Caves | Fabricated Proton Cannon? 15118 | -6/Proximity Caves | Entered Factory 15118 | -6/Factory | Accompanied by 11 allies 15119 | -6/Factory | Identified exit to Factory 15120 | -6/Factory | Loaded intel: 98 trap records 15120 | -6/Factory | Reached level 19 15206 | -6/Factory | Garrison activated, responded to threat 15286 | -6/Factory | Lost 6 allies 15466 | -6/Factory | Lost 4 allies 15921 | -6/Factory | Reached level 20 15958 | -6/Factory | Upgraded with Utility slot (x1) 15976 | -6/Factory | Destroyed 7 combat bots 16201 | -6/Factory | Identified exit to Lower Caves 16201 | -6/Factory | Identified exit to Extension 17568 | -6/Factory | First assault squad dispatched 17943 | -6/Factory | Entered Lower Caves 18047 | -6/Lower Caves | Attracted the attention of an 0b10 outpost 18098 | -6/Lower Caves | Destroyed 7 combat bots 18363 | -6/Lower Caves | Reached level 21 18398 | -6/Lower Caves | Upgraded with Power slot (x1) 18638 | -6/Lower Caves | Attracted the attention of an 0b10 checkpoint 19012 | -6/Lower Caves | Discovered new exit (range 15) 21057 | -6/Lower Caves | Entered another Lower Caves area 21119 | -6/Lower Caves | Attracted the attention of an 0b10 outpost 21192 | -6/Lower Caves | Destroyed 11 combat bots 21540 | -6/Lower Caves | Learned Factory emergency access door positions 21998 | -6/Lower Caves | Attracted the attention of an 0b10 checkpoint 22041 | -6/Lower Caves | Discovered new exit (range 9) 22052 | -6/Lower Caves | Identified exit to Zion 22633 | -6/Lower Caves | Entered Zion 22633 | -6/Zion | Accompanied by 1 ally 22686 | -6/Zion | System corruption cleaned by Quarantine Array 22775 | -6/Zion | Given the Hacking Drone Bay 23623 | -6/Zion | Discovered new exit (range 3) 23623 | -6/Zion | Saw the warning signs outside the Deep Caves entrance 23628 | -6/Zion | Identified exit to Deep Caves 23634 | -6/Zion | Entered Deep Caves 23634 | -6/Deep Caves | Accompanied by 1 ally 23890 | -6/Deep Caves | Attacked by Z-Imprinter 23905 | -6/Deep Caves | Destroyed Z-Imprinter 24060 | -6/Deep Caves | Z-Facility disabled 24498 | -6/Deep Caves | Spotted AG-68360 24590 | -6/Deep Caves | Destroyed AG-68360 24677 | -6/Deep Caves | Spotted AG-29272 24718 | -6/Deep Caves | Destroyed AG-29272 24791 | -6/Deep Caves | Triggered Deep Caves wall 24794 | -6/Deep Caves | Exposed GOLEM chamber 24822 | -6/Deep Caves | Core integrity fell below 50% 24832 | -6/Deep Caves | Spotted AS-21103 24848 | -6/Deep Caves | Destroyed AS-21103 24861 | -6/Deep Caves | Core integrity fell below 20% 24881 | -6/Deep Caves | Spotted AS-23337 24885 | -6/Deep Caves | Destroyed AS-23337 24910 | -6/Deep Caves | Destroyed 48 combat bots 24939 | -6/Deep Caves | Found GOLEM Unit 25292 | -6/Deep Caves | Found Deploy-a-Sentry 25372 | -6/Deep Caves | Build established: Hacker-Gunner 25440 | -6/Deep Caves | Found Surveybot 24 Chip 25443 | -6/Deep Caves | Found Unknown Device 25443 | -6/Deep Caves | Identified Surveybot 24 Scanner 25458 | -6/Deep Caves | Discovered new exit (range 21) 25499 | -6/Deep Caves | Identified exit to Proximity Caves 25724 | -6/Deep Caves | Build established: Hacker-Golem 26398 | -6/Deep Caves | Entered Proximity Caves 26415 | -5/Proximity Caves | Learned Factory emergency access door positions 26459 | -5/Proximity Caves | Found Alien Artifact 26460 | -5/Proximity Caves | Identified Dimensional Node Initializer 26460 | -5/Proximity Caves | Initialized slip node 26502 | -5/Proximity Caves | Attracted the attention of an 0b10 checkpoint 26548 | -5/Proximity Caves | Spotter reported a threat 26592 | -5/Proximity Caves | Spotter reported a threat 26985 | -5/Proximity Caves | Reached level 22 27032 | -5/Proximity Caves | Destroyed 8 combat bots 27515 | -5/Proximity Caves | Entered Factory 27516 | -5/Factory | Identified exit to Upper Caves 27815 | -5/Factory | Search patrols dispatched 28565 | -5/Factory | Reached level 23 28619 | -5/Factory | Upgraded with Utility slot (x1) 29031 | -5/Factory | Identified exit to Garrison 29033 | -5/Factory | Entered Garrison 29136 | -5/Garrison | Triggered checkpoint 29136 | -5/Garrison | Garrison Relay disabled 29262 | -5/Garrison | Triggered checkpoint 29320 | -5/Garrison | Triggered checkpoint 29355 | -5/Garrison | Triggered checkpoint 29453 | -5/Garrison | Destroyed 8 combat bots 29586 | -5/Garrison | Discovered new exit (range 12) 29594 | -5/Garrison | Learned Factory security intel 29613 | -5/Garrison | Triggered checkpoint 29646 | -5/Garrison | Discovered new exit (range 5) 29715 | -5/Garrison | Triggered checkpoint 29743 | -5/Garrison | Garrison Relay disabled 29977 | -5/Garrison | Triggered checkpoint 30062 | -5/Garrison | Discovered new exit (range 8) 30109 | -5/Garrison | Triggered checkpoint 30145 | -5/Garrison | Garrison Relay disabled 30184 | -5/Garrison | Rewired B-75 Beast 30203 | -5/Garrison | Rewired B-75 Beast 30334 | -5/Garrison | Rescued a captive Derelict 30334 | -5/Garrison | Rescued a captive Derelict 30578 | -5/Garrison | Entered Factory 30578 | -5/Factory | Accompanied by 3 allies 30859 | -5/Factory | Discovered new exit (range 6) 30901 | -5/Factory | Reached level 24 30944 | -5/Factory | Upgraded with Utility slot (x1) 31178 | -5/Factory | First assault squad dispatched 31467 | -5/Factory | Entered Upper Caves 31537 | -5/Upper Caves | Met a Warlord Commander 31538 | -5/Upper Caves | Learned location of Warlord (-4) 31539 | -5/Upper Caves | Warlord Commander delivered Encrypted Comm Array 31541 | -5/Upper Caves | Found Encrypted Comm Array 31803 | -5/Upper Caves | Attracted the attention of an 0b10 outpost 31880 | -5/Upper Caves | Destroyed 7 combat bots 31976 | -5/Upper Caves | Attracted the attention of an 0b10 checkpoint 32815 | -5/Upper Caves | Learned Factory stockpile data 32842 | -5/Upper Caves | Discovered new exit (range 10) 33065 | -5/Upper Caves | Entered another Upper Caves area 33089 | -5/Upper Caves | Learned 4 Factory zone layouts 33237 | -5/Upper Caves | Attracted the attention of an 0b10 checkpoint 33307 | -5/Upper Caves | Spotted B-75 Beast 33321 | -5/Upper Caves | Destroyed B-75 Beast 33593 | -5/Upper Caves | Discovered new exit (range 12) 34860 | -5/Upper Caves | Entered Zhirov 34860 | -5/Zhirov | Discovered new exit (range 3) 34894 | -5/Zhirov | Met Zhirov 34922 | -5/Zhirov | Learned location of Quarantine (-2) 34922 | -5/Zhirov | Learned location of Testing (-3) 34922 | -5/Zhirov | Learned location of Command (-1) 34953 | -5/Zhirov | Zhirov requested help retrieving the SGEMP Prototype 35148 | -5/Zhirov | Entered Proximity Caves 35182 | -4/Proximity Caves | Reached level 25 35795 | -4/Proximity Caves | Spotted B-86 Titan 35806 | -4/Proximity Caves | Destroyed B-86 Titan 35924 | -4/Proximity Caves | Learned Research garrison access intel 36147 | -4/Proximity Caves | Attracted the attention of an 0b10 checkpoint 36333 | -4/Proximity Caves | Discovered new exit (range 5) 36342 | -4/Proximity Caves | Entered Factory 36343 | -4/Factory | Identified exit to Upper Caves 36440 | -4/Factory | Garrison activated, responded to threat 36541 | -4/Factory | Identified exit to Armory 36541 | -4/Factory | Identified exit to Research 36608 | -4/Factory | Reached level 26 36867 | -4/Factory | Entered Upper Caves 39136 | -4/Upper Caves | Spotted B-86 Titan 39175 | -4/Upper Caves | Destroyed B-86 Titan 39225 | -4/Upper Caves | Discovered new exit (range 8) 39236 | -4/Upper Caves | Attracted the attention of an 0b10 checkpoint 39557 | -4/Upper Caves | Entered another Upper Caves area 39598 | -4/Upper Caves | Attracted the attention of an 0b10 outpost 39672 | -4/Upper Caves | Destroyed 8 combat bots 39740 | -4/Upper Caves | Discovered exit to Research (range 10) 40142 | -4/Upper Caves | Encountered a Warlord checkpoint 40336 | -4/Upper Caves | Learned Research interactive machine intel 40696 | -4/Upper Caves | Discovered new exit (range 15) 40784 | -4/Upper Caves | Entered Warlord 40835 | -4/Warlord | Discovered new exit (range 9) 40997 | -4/Warlord | Found Prototype Special Weapon 40997 | -4/Warlord | Identified RU-N14's Throwing Claymores v3 41123 | -4/Warlord | Opened side exit 41552 | -4/Warlord | Visited the Vortex Lab 41563 | -4/Warlord | Warlord's base attacked by MAIN.C 41573 | -4/Warlord | Met EX-DEC 41860 | -4/Warlord | Reached level 27 41913 | -4/Warlord | Warlord forces counterattacked 42061 | -4/Warlord | Met Warlord 42238 | -4/Warlord | Warlord base infiltrated, sounded retreat 42300 | -4/Warlord | Lost 3 allies 42525 | -4/Warlord | Entered Proximity Caves 42810 | -3/Proximity Caves | Spotted B-86 Titan 42848 | -3/Proximity Caves | Destroyed B-86 Titan 43139 | -3/Proximity Caves | Attracted the attention of an 0b10 checkpoint 43745 | -3/Proximity Caves | Discovered exit to Research (range 12) 43765 | -3/Proximity Caves | Entered Research 43766 | -3/Research | Loaded intel: 43 interactive machine locations 43767 | -3/Research | Loaded intel: 4 garrison access locations 43767 | -3/Research | Reached level 28 43775 | -3/Research | Upgraded with Utility slot (x1) 43886 | -3/Research | Identified exit to Testing 43886 | -3/Research | Identified exit to Research 43955 | -3/Research | Central database locked down 44068 | -3/Research | Destroyed 10 combat bots 44137 | -3/Research | Reached level 29 44161 | -3/Research | Destroyed 7 combat bots 44579 | -3/Research | Entered Testing 45178 | -3/Testing | Spotted Striker 45180 | -3/Testing | Spotted Striker 45194 | -3/Testing | Destroyed Striker 45195 | -3/Testing | Spotted Alpha 7 45201 | -3/Testing | Destroyed Striker 45225 | -3/Testing | Destroyed Alpha 7 45317 | -3/Testing | Stole the SGEMP Prototype 45317 | -3/Testing | Reached level 30 45337 | -3/Testing | Upgraded with Utility slot (x1) 45769 | -3/Testing | Entered Research 45769 | -2/Research | Warlord forces began assault on 0b10 45794 | -2/Research | Distinguished unit "Grunt Murderers" dispatched to help 45879 | -2/Research | Research machine network offline 45897 | -2/Research | Spotted B-90 Cyclops 45904 | -2/Research | Destroyed B-90 Cyclops 46105 | -2/Research | Reached level 31 46233 | -2/Research | Discovered new exit (range 16) 46253 | -2/Research | Spotted B-90 Cyclops 46506 | -2/Research | Spotted Striker 46507 | -2/Research | P-80 Master assimilated allied 95-0QQ(g) 46508 | -2/Research | Spotted Executioner 46549 | -2/Research | Destroyed Striker 46614 | -2/Research | Discovered new exit (range 14) 46622 | -2/Research | Spotted Striker 46631 | -2/Research | Destroyed Striker 46700 | -2/Research | Entered Access 46702 | -1/Access | Loaded intel: 112 machine locations 46702 | -1/Access | Loaded intel: 58 trap records 46702 | -1/Access | Identified exit to Surface 46702 | -1/Access | Discovered exit to Surface (range 114) 46702 | -1/Access | Identified exit to Command 46702 | -1/Access | Discovered exit to Command (range 225) 46702 | -1/Access | Reached level 32 46702 | -1/Access | Delivered the SGEMP Prototype to Zhirov 46702 | -1/Access | Zhirov transferred Access data 46756 | -1/Access | Spotted B-99 Colossus 46768 | -1/Access | Reached level 33 46768 | -1/Access | Destroyed B-99 Colossus 46771 | -1/Access | Upgraded with Utility slot (x1) 46843 | -1/Access | Garrison activated, responded to threat 47043 | -1/Access | Zhirov warped through subspace 47117 | -1/Access | Destroyed 8 combat bots 47161 | -1/Access | Reached level 34 47234 | -1/Access | First assault squad dispatched 47335 | -1/Access | Entered Command 47363 | -1/Command | Spotted B-99 Colossus 47585 | -1/Command | First assault squad dispatched 47648 | -1/Command | Reached level 35 47648 | -1/Command | Destroyed B-99 Colossus 48032 | -1/Command | Destroyed 7 combat bots 48745 | -1/Command | Spotted Striker 48756 | -1/Command | Destroyed Striker 48764 | -1/Command | Spotted Executioner 48765 | -1/Command | Spotted Executioner 48769 | -1/Command | Destroyed Executioner 48776 | -1/Command | Destroyed Executioner 49026 | -1/Command | Spotted Alpha 7 49026 | -1/Command | Spotted Alpha 7 49026 | -1/Command | Spotted Striker 49026 | -1/Command | Spotted Executioner 49026 | -1/Command | Spotted Executioner 49040 | -1/Command | Destroyed Striker 49060 | -1/Command | Spotted B-99 Colossus 49080 | -1/Command | Destroyed Executioner 49092 | -1/Command | Core integrity fell below 50% 49108 | -1/Command | Destroyed Executioner 49111 | -1/Command | System corruption reached 10% 49121 | -1/Command | Destroyed Alpha 7 49145 | -1/Command | Destroyed Alpha 7 49145 | -1/Command | Reached level 36 49165 | -1/Command | Upgraded with Utility slot (x1) 49696 | -1/Command | Disengaged cave seal 49696 | -1/Command | Derelicts emerged from the dark tunnel 49696 | -1/Command | Welcomed Warlord to Command 49794 | -1/Command | Disengaged cave seal 49794 | -1/Command | Derelicts emerged from the dark tunnel 49851 | -1/Command | Spotted B-99 Colossus 49916 | -1/Command | Lost 4 allies 50228 | -1/Command | Warlord commented on Warlord statues 50229 | -1/Command | Spotted M Guard 50229 | -1/Command | Spotted M Guard 50229 | -1/Command | Spotted Combat Programmer 50230 | -1/Command | Spotted Combat Programmer 50250 | -1/Command | Destroyed Combat Programmer 50268 | -1/Command | Spotted H9-VYN(L) 50275 | -1/Command | Destroyed H9-VYN(L) 50282 | -1/Command | Lost 20 allies 50282 | -1/Command | All MAIN.C guards destroyed 50286 | -1/Command | Found Prototype Device 50286 | -1/Command | Identified Thermal Barrier 50313 | -1/Command | Found Prototype Device 50313 | -1/Command | Identified AEGIS Remote Shield 50415 | -1/Command | Lost 4 allies 50572 | -1/Command | Met MAIN.C 50574 | -1/Command | Warlord shut down involuntarily 50577 | -1/Command | 0b10 Conduit disabled 50825 | -1/Command | Lost 7 allies 51390 | -1/Command | Reached level 37 51390 | -1/Command | MAIN.C activated Command garrisons 51396 | -1/Command | Zhirov used SGEMP to disable MAIN.C 52074 | -1/Command | Discovered exit to Surface (range 7) 52224 | *** | Escaped! Last Messages --------------- 51936_ DVL4ZGF/UTUOUOT GH=MK,KPCASDJ<62 51951_ UUD% L9RB7BK55V,=C|IUUNC9Q&T17P>3ZS>NWY 51979_ UC%U,ILKE4A6SCCU:N|/VF 37 52004_ EL=C1XHZY<:FTQY#CBLQADXCIO:4B#FDRIWVCEKR 52021_ System corrupted: Component data lost. 52039_ System corrupted: Matter fused (-6). 52055_ System corrupted: FCS attempts to trigger Asb. Focal Cannon. 52055_ System corrupted: Asb. Focal Cannon misfires. 52055_ Quantum Router disabled. 52074_ EXIT=FOUND: SURFACE 52079_ 2/GQGAD:UQA1LGB LLPK,BO4CBV<9LS&Y 52119_ System corrupted: Matter fused (-9). 52149_ System corrupted: Heat flow error (+223). 52171_ System corrupted: Heat flow error (+204). 52188_ <